Cogmind - Beta 16.1 @@@ ROGUE MODE // 2026.02.27 @ 17:31:19 Player: DS-RVS Result: Core destroyed Performance ------------- Evolutions (2) 1000 Regions Visited (4) 800 Robots Destroyed (108) 540 Value Destroyed (3542) 3542 Prototype IDs (5) 100 Alien Tech Used (0) 0 Bonus (1240) 1240 TOTAL SCORE: 7222 Bonus ------- High Alert Combat Kills 397 Follower Combat Kills 236 Entered Garrisons 200 Used RIF Installer 500 Friendly Fire -93 Cogmind --------- Core Integrity 0/550 Matter 295/300 Energy 291/310 System Corruption 6% Temperature Critical (522) Movement Walking (180) Ox1 Location -8/Garrison Parts ------- > --- POWER (1) -------- Fission Core > --- PROPULSION (4) --- VSS Leg VSS Leg > --- UTILITY (4) ------ Improved Heat Sink Large Storage Unit Improved Signal Interpreter Improved Particle Charger > --- WEAPON (2) ------- Improved Medium Laser Phase Cannon > --- INVENTORY (15) --- Light Angular Momentum Engine Improved Sensor Array Improved Terrain Scanner Authchip [Storage] Authchip [Processor] Relay Coupler [NC] (23) Relay Coupler [NC] (25) Field Laser Proton Cannon Ion Cannon Heavy Flak Cannon Rocket Launcher Rocket Launcher Spear Peak State ------------ > --- POWER ------------ Fission Core > --- PROPULSION ------- Aluminum Leg Aluminum Leg VSS Leg VSS Leg > --- UTILITY ---------- Improved Heat Sink Large Storage Unit Improved Signal Interpreter Improved Particle Charger > --- WEAPON ----------- Improved Medium Laser Phase Cannon > --- INVENTORY -------- Light Angular Momentum Engine Improved Sensor Array Improved Terrain Scanner Authchip [Storage] Authchip [Processor] Relay Coupler [NC] Relay Coupler [NC] Field Laser Proton Cannon Ion Cannon Heavy Flak Cannon Rocket Launcher Rocket Launcher Spear [Rating: 37] Favorites ----------- Power Deuterium Engine Engine Deuterium Engine Power Core Fission Core Propulsion Aluminum Leg Treads Light Treads Leg Aluminum Leg Utility Large Storage Unit Device Cooling System Storage Large Storage Unit Processor Improved Signal Interpreter Protection Reactive Plating Weapon Small Laser Energy Gun Small Laser Energy Cannon Advanced Beam Cannon Ballistic Gun Shotgun Launcher Rocket Launcher Piercing Weapon Spear Build | -11 -10 -9 -8 -8 ------- Run | Yrd Mat Mat Mat Gar Slots Evolved 4 | . . 2 2 . Power . | . . . . . Propulsion 2 | . . 1 1 . Utility 2 | . . 1 1 . Weapon . | . . . . . Parts Attached 66 | 7 10 11 24 14 Power 6 | 1 1 1 1 2 Engine 5 | 1 1 1 1 1 Core 1 | . . . . 1 Reactor . | . . . . . Propulsion 24 | 2 2 3 12 5 Treads 6 | 2 . . 4 . Leg 18 | . 2 3 8 5 Wheel . | . . . . . Hover . | . . . . . Flight . | . . . . . Utility 16 | 2 2 3 6 3 Device 8 | 1 1 2 2 2 Storage 3 | 1 1 . 1 . Processor 2 | . . . 2 . Hackware . | . . . . . Protection 3 | . . 1 1 1 Artifact . | . . . . . Weapon 20 | 2 5 4 5 4 Energy Gun 9 | 2 2 3 1 1 Energy Cannon 2 | . . . 1 1 Ballistic Gun 6 | . 3 1 2 . Ballistic Cannon . | . . . . . Launcher 2 | . . . 1 1 Special Weapon . | . . . . . Impact Weapon . | . . . . . Slashing Weapon . | . . . . . Piercing Weapon 1 | . . . . 1 Special Melee Weapon . | . . . . . Unidentified Prototypes 5 | . . 4 1 . Parts Lost 17 | . 6 . 2 9 Power 1 | . 1 . . . Propulsion 8 | . 2 . . 6 Utility 5 | . 1 . 1 3 Weapon 3 | . 2 . 1 . Highest Loss Streak 6 | . 6 . 1 3 To Critical Strikes . | . . . . . Average Backups 13 | 7 10 14 14 14 Power . | . 1 1 1 1 Propulsion 2 | 3 3 2 1 . Utility 4 | 1 3 3 4 6 Weapon 5 | . 1 7 7 6 Tool/Special . | . . . . . Unused Backups 29 | 1 3 7 5 13 Power 4 | . . 1 2 1 Propulsion 4 | . . 2 1 1 Utility 9 | 1 . 1 . 7 Weapon 12 | . 3 3 2 4 Tool/Special . | . . . . . Average Slot Usage (%) 97 | . 98 99 99 91 Engine 9 | . 13 11 9 7 Treads 11 | . 11 . 8 22 Leg 20 | . 16 32 27 9 Device 13 | . 13 18 14 10 Storage 10 | . 14 11 9 9 Processor 5 | . . . 8 9 Protection 3 | . . 3 4 4 Energy Gun 9 | . 17 8 6 7 Energy Cannon 3 | . . . 6 4 Ballistic Gun 6 | . 10 13 5 . Piercing Weapon 1 | . . . . 3 Peak Build Rating 37 | 8 11 20 33 37 Average Rating 20 | 6 8 17 28 29 On Entrance 13 | . 7 11 20 31 Avg Prop Armor Cover (%) 4 | . . . 4 . Naked Turns . | . . . . . Heaviest Build 56 | 13 30 46 56 50 Greatest Support 85 | 40 40 33 85 85 Greatest Overweight (x) 3 | . 1 1 1 3 Average Overweight (x) . | . . 1 . . Largest Inventory Capacity 15 | 8 15 15 15 15 Average Capacity 14 | 7 14 15 15 15 Most Carried 15 | 8 15 15 15 15 Average Carried 13 | 7 10 14 14 14 Final Capacity 15 | 8 15 15 15 15 Final Carried 15 | 7 15 15 15 14 Class Distribution -------------------- 65% | Mutant 31% | Scavenger-Mutant 3% | Commander-Mutant Dominant Class ---------------- Mutant | -10/Materials Mutant | -9/Materials Scavenger-Mutant | -8/Materials Mutant | -8/Garrison Resources | -11 -10 -9 -8 -8 ----------- Run | Yrd Mat Mat Mat Gar Matter Collected 1929 | 270 259 310 760 330 Remotely . | . . . . . Salvage Created 3890 | 256 637 459 2069 469 Parts 233 | 29 41 30 98 35 Haulers Intercepted 8 | . 1 4 3 . Recyclers Shooed 5 | . 4 . 1 . Parts Field Recycled . | . . . . . Retrieved Matter . | . . . . . Parts Self-Destructed . | . . . . . Prevented . | . . . . . Parts Restored . | . . . . . Kills | -11 -10 -9 -8 -8 ------- Run | Yrd Mat Mat Mat Gar Combat Hostiles Destroyed 69 | . 9 5 38 17 Melee 3 | . . . . 3 Guns 34 | . 9 5 19 1 Cannons 20 | . . . 15 5 AOE 12 | . . . 4 8 Classes Destroyed 15 | 2 6 3 2 2 Worker 4 | . 1 . 3 . Builder 3 | . 1 . 2 . Tunneler 11 | 9 2 . . . Hauler 8 | . 1 4 3 . Recycler 5 | 1 2 . 2 . Operator 1 | . . 1 . . Watcher 6 | . 2 2 2 . Swarmer 15 | . 3 . 6 6 Grunt 31 | . 6 3 22 . Brawler 1 | . . . 1 . Duelist 2 | . . 1 1 . Sentry 12 | . . 1 7 4 Specialist 1 | . . . . 1 Hunter 5 | . . . 1 4 Programmer 2 | . . . . 2 Guerrilla 1 | . . . . 1 Best Kill Streak 8 | 2 4 2 6 8 Combat Bots Only 8 | . 3 1 6 8 Max Kills in Single Turn 3 | 1 1 1 2 3 Gunslinging . | . . . . . Exploded 3 | . . . 1 3 Melee 1 | . . . . 1 Uniques/NPCs Destroyed . | . . . . . Combat | -11 -10 -9 -8 -8 -------- Run | Yrd Mat Mat Mat Gar Hostile Shots Fired 398 | . 93 21 160 124 Missed 109 | . 19 7 48 35 Hits 289 | . 74 14 112 89 Projectile 289 | . 74 14 112 89 Critical Strikes 14 | . 2 1 6 5 Part Disruptions 2 | . . . 1 1 Damage Taken 4162 | . 877 173 1521 1591 Core 708 | . 130 27 224 327 Absorbed by Shields 260 | . . . 136 124 Ignored by Resistances 53 | . . . 53 . Core Remaining (%) 80 | 100 48 93 . . Volleys Fired 255 | 17 63 37 103 35 Largest 2 | 2 2 2 2 2 Hottest 141 | 80 80 68 124 141 Shots Fired 489 | 34 110 73 202 70 Gun 368 | 34 110 73 122 29 Cannon 108 | . . . 76 32 Launcher 13 | . . . 4 9 Special . | . . . . . Kinetic 138 | . 34 49 55 . Thermal 308 | 34 76 . 137 61 Explosive 13 | . . . 4 9 Electromagnetic 30 | . . 24 6 . Robot Hit Streak 18 | 6 8 18 9 9 Robot Miss Streak 6 | 2 4 6 6 6 Penetration Max . | . . . . . Secondary Targets 2 | . . . 2 . Max Gunslinging Chain 1 | . . . 1 . Shots Hit Robots 321 | 20 73 55 133 40 Core Hits 194 | 11 35 27 91 30 Critical Kills 2 | . . . 2 . Critical Parts Destroyed 1 | . . 1 . . Critical Strikes 8 | . . 1 7 . Burn 5 | . . . 5 . Meltdown 2 | . . . 2 . Destroy 1 | . . 1 . . Melee Attacks 23 | . . . . 23 Impact . | . . . . . Slashing . | . . . . . Piercing 23 | . . . . 23 Sneak Attacks . | . . . . . Combat Hostiles . | . . . . . Follow-up Attacks . | . . . . . Damage Inflicted 6555 | 218 799 866 3099 1573 Guns 3635 | 218 799 866 1553 199 Cannons 1535 | . . . 1024 511 Explosions 1226 | . . . 522 704 Melee 159 | . . . . 159 Ramming . | . . . . . Kinetic 1541 | . 193 620 728 . Thermal 3318 | 218 606 . 1784 710 Explosive 1226 | . . . 522 704 Electromagnetic 311 | . . 246 65 . Impact . | . . . . . Slashing . | . . . . . Piercing 159 | . . . . 159 Highest Corruption 6 | . 2 . 1 6 Average Corruption 2 | . 2 . 1 3 Corruption Purged . | . . . . . Corruption Blocked . | . . . . . Effects 43 | . 1 . 13 29 Message Errors 13 | . . . 3 10 Matter Fused 14 | . . . 6 8 Heat Flow Errors 2 | . . . 1 1 Energy Discharges 3 | . . . . 3 Parts Fused 1 | . . . 1 . Data Loss (minor) 4 | . . . 2 2 Data Loss (major) 2 | . . . . 2 Misfires 3 | . . . . 3 Alerts 1 | . 1 . . . Overload Shots . | . . . . . Overflow Damage 4 | . . . . 4 Projectiles . | . . . . . Explosions 4 | . . . . 4 Melee . | . . . . . Knockbacks . | . . . . . Impact . | . . . . . Kinetic . | . . . . . Secondary . | . . . . . Self-Inflicted Damage 194 | . . . . 194 Shots 6 | . . . . 6 Rammed . | . . . . . Targets Rammed . | . . . . . Kicked . | . . . . . Crushed . | . . . . . Highest Temperature 522 | 72 390 17 68 522 Average Temperature 93 | 24 136 12 16 97 Received Heat Transfer 1433 | . 432 96 773 132 Effects 7 | . 5 . . 2 Shutdowns 1 | . 1 . . . Energy Bleed 3 | . 3 . . . Short Circuit 1 | . 1 . . . Damage (core) 2 | . . . . 2 Siege Activations . | . . . . . Martial Activations . | . . . . . Shielding Activations . | . . . . . Robots Disrupted . | . . . . . Combat Hostiles . | . . . . . Robots Corrupted . | . . . . . Combat Hostiles . | . . . . . Parts Fried . | . . . . . Impact Corruptions . | . . . . . Robots Melted 2 | . . . 2 . Combat Hostiles . | . . . . . Parts Melted 15 | 1 . . 11 3 Heat Transferred 6944 | 500 1375 . 3885 1184 Parts Sabotaged . | . . . . . Parts Stolen . | . . . . . Parts Stripped . | . . . . . Power Chain Reactions . | . . . . . Alert | -11 -10 -9 -8 -8 ------- Run | Yrd Mat Mat Mat Gar Maximum Alert Level 4 | . . . 2 4 Low Security (%) 56 | 100 100 100 38 . Level 1 3 | . . . 10 . Level 2 23 | . . . 51 32 Level 3 10 | . . . . 43 Level 4 5 | . . . . 23 Level 5 . | . . . . . High Security . | . . . . . Max Security . | . . . . . Peak Influence 1244 | 10 112 40 640 1244 Initial 410 | . . . . 410 Average 326 | . 17 8 337 890 Influence Increases 2742 | 50 290 199 1219 984 Destroy 0b10 Robot/C 1500 | . 180 100 760 460 Destroy 0b10 Robot/NC 195 | 50 45 35 60 5 Destroy Leader 308 | . 46 52 190 20 Allied During Kill 34 | . . . . 34 Successful Hack 85 | . 4 12 41 28 Select Force Hacks 60 | . . . 60 . Disable Machine 30 | . . . 30 . Anti-Garrison Action 300 | . . . . 300 Destroy Structure 155 | . . . 18 137 Lose Combat Pursuer 75 | . 15 . 60 . Influence Decreases 1498 | 50 290 199 588 371 Entered New Map 221 | . . . . 221 Time Decay 1047 | 50 230 199 568 . Lost Part 170 | . 60 . 20 90 Lost Ally 60 | . . . . 60 Squads Dispatched 11 | . 1 2 8 . Investigation 5 | . . . 5 . Extermination . | . . . . . Reinforcement 6 | . 1 2 3 . Assault . | . . . . . Garrison . | . . . . . Intercept . | . . . . . Searches Triggered . | . . . . . Construction Impeded 1 | . . . 1 . Haulers Reinforced . | . . . . . Active Scanning Responses . | . . . . . Cargo Convoy Interrupts . | . . . . . Stealth | -11 -10 -9 -8 -8 --------- Run | Yrd Mat Mat Mat Gar Distress Signals 8 | . . 1 7 . Communications Jammed . | . . . . . Distress Signals . | . . . . . Times Spotted 107 | . 15 15 56 21 Peak Tracking Total 8 | . 6 3 7 8 Tactical Retreats 4 | . 1 . 3 . Traps | -11 -10 -9 -8 -8 ------- Run | Yrd Mat Mat Mat Gar Traps Triggered 9 | . 1 . 5 3 Indirectly . | . . . . . Trap Hack Attempts . | . . . . . Triggered . | . . . . . Disarmed . | . . . . . Reprogrammed . | . . . . . Reused . | . . . . . Traps Extracted . | . . . . . Installed . | . . . . . Triggered . | . . . . . Machines | -11 -10 -9 -8 -8 ---------- Run | Yrd Mat Mat Mat Gar Machines Disabled 5 | . . . 2 3 Max in Single Turn 1 | . . . 1 1 Garrison Relay 3 | . . . . 3 Machines Repaired . | . . . . . Machines Dismantled . | . . . . . Machines Sabotaged . | . . . . . Overloaded Fab Kills . | . . . . . Hacking | -11 -10 -9 -8 -8 --------- Run | Yrd Mat Mat Mat Gar Machines Accessed 21 | . 2 4 12 3 Terminals 16 | . 2 3 8 3 Fabricators . | . . . . . Repair Stations . | . . . . . Recycling Units 3 | . . 1 2 . Scanalyzers 1 | . . . 1 . Garrison Access 1 | . . . 1 . Total Hacks 52 | . 2 12 32 6 Successful 21 | . 1 3 15 2 Failed 30 | . 1 9 16 4 Catastrophic 8 | . 1 1 6 . Database Lockouts 1 | . . . 1 . Manual 29 | . 1 10 18 . Terminals 39 | . 2 10 21 6 Fabricators . | . . . . . Repair Stations . | . . . . . Recycling Units 8 | . . 2 6 . Scanalyzers 4 | . . . 4 . Garrison Access 1 | . . . 1 . Terminal Hacks 9 | . 1 1 5 2 Part Schematic 1 | . . . 1 . Branch Access Points 2 | . . 1 1 . Emergency Access Points 1 | . . . . 1 Locate Traps 4 | . 1 . 3 . Patrol Navigation 1 | . . . . 1 Fabricator Hacks . | . . . . . Repair Station Hacks . | . . . . . Recycling Unit Hacks 3 | . . 1 2 . Report Inventory 1 | . . . 1 . Retrieve Components 2 | . . 1 1 . Scanalyzer 2 | . . . 2 . Retrieve Study 2 | . . . 2 . Garrison Access Hacks 1 | . . . 1 . Unlock Access 1 | . . . 1 . Unauthorized Hacks 6 | . . 1 5 . Terminals 4 | . . 1 3 . Botnet 3 | . . 1 2 . Skim 1 | . . . 1 . Fabricators . | . . . . . Repair Stations . | . . . . . Recycling Units 2 | . . . 2 . Tunnel 2 | . . . 2 . Scanalyzers . | . . . . . Garrison Access . | . . . . . Data Cores Recovered . | . . . . . Used . | . . . . . Hacking Detections 18 | . 2 3 11 2 Full Trace Events 4 | . . . 3 1 Feedback Events 1 | . . . 1 . Corruption 1 | . . . 1 . Feedback Blocked . | . . . . . Robot Schematics Acquired . | . . . . . Robots Built . | . . . . . Authchips . | . . . . . Time . | . . . . . Total Robot Build Rating . | . . . . . Part Schematics Acquired 1 | . . . 1 . Parts Built . | . . . . . Authchips . | . . . . . Time . | . . . . . Total Part Build Rating . | . . . . . Part Studies Acquired 2 | . . . 2 . Parts Repaired . | . . . . . Time . | . . . . . Parts Recycled . | . . . . . Recycled Matter . | . . . . . Retrieved Matter . | . . . . . Retrieved Components 13 | . . 3 10 . Parts Scanalyzed . | . . . . . Part Schematics Acquired . | . . . . . Parts Damaged . | . . . . . Bothacking | -11 -10 -9 -8 -8 ------------ Run | Yrd Mat Mat Mat Gar Used RIF Installer 1 | . . . . 1 Robots Hacked . | . . . . . Non-combat . | . . . . . Combat . | . . . . . Robot Hacks Applied . | . . . . . Relay Couplers Released 11 | . . . . 11 Machine Destruction 11 | . . . . 11 Fabnet Peak Effective % . | . . . . . Robots Rewired 4 | . . . . 4 Allies Hacked . | . . . . . Hacks Repelled . | . . . . . Allies | -11 -10 -9 -8 -8 -------- Run | Yrd Mat Mat Mat Gar Total Allies 6 | . . . . 6 Largest Group 4 | . . . . 4 Highest-Rated Group 96 | . . . . 96 Highest-Rated Ally 38 | . . . . 38 Total Orders . | . . . . . Ally Attacks 29 | . . . . 29 Total Damage 541 | . . . . 541 Kills 8 | . . . . 8 Allies Corrupted . | . . . . . Allies Melted . | . . . . . Intel | -11 -10 -9 -8 -8 ------- Run | Yrd Mat Mat Mat Gar Active Infowar (turns) 1989 | 278 531 578 595 7 Sensors 602 | . . . 595 7 Seismic 1387 | 278 531 578 . . Robot Analysis Total . | . . . . . Derelict Logs Recovered . | . . . . . Drone Launches . | . . . . . Drone Recoveries . | . . . . . Exploration | -11 -10 -9 -8 -8 ------------- Run | Yrd Mat Mat Mat Gar Turns Passed 6338 | 688 1328 843 1912 1567 Spaces Moved 2942 | 314 591 333 843 861 Core 4 | 4 . . . . Treads 1291 | 310 225 . 217 539 Legs 1647 | . 366 333 626 322 Wheels . | . . . . . Hover . | . . . . . Flight . | . . . . . Fastest Speed 50 | 50 160 190 112 105 Average Speed 160 | 158 178 190 151 147 Slowest Speed 330 | 160 190 190 250 330 Overloaded Moves . | . . . . . Propulsion Burnouts . | . . . . . Robots Hopped . | . . . . . Potential Cave-ins . | . . . . . Cave-ins Triggered . | . . . . . Exploration Rate (%) 50 | 6 74 31 79 64 Regions Visited 4 Branch Regions . Pre-discovered Areas 2 | . . . 2 . Known Exits Taken 1 | . . . 1 . Unknown Exits Taken 3 | 1 1 1 . . Scrap Searched . | . . . . . Spaces Dug . | . . . . . Terrain Destroyed 80 | . . . 18 62 Melee . | . . . . . Projectile 2 | . . . . 2 AOE 78 | . . . 18 60 Terrain Rammed . | . . . . . Walls Destroyed . | . . . . . Machines Disabled . | . . . . . Actions | -11 -10 -9 -8 -8 --------- Run | Yrd Mat Mat Mat Gar Total 4030 | 467 763 476 1270 1054 Wait 537 | 121 76 70 247 23 Move 2939 | 313 590 332 843 861 Hop . | . . . . . Pick Up 51 | 8 16 11 11 5 Fast Attach 29 | 7 3 1 11 7 Attach 11 | . 4 3 4 . Detach 3 | . 1 1 1 . Swap 55 | . 3 8 30 14 Drop 50 | 1 7 13 20 9 Fire 255 | 17 63 37 103 35 Melee 23 | . . . . 23 Ram . | . . . . . Kick . | . . . . . Crush . | . . . . . Escape Stasis 4 | . . . . 4 Rewire 73 | . . . . 73 Trap . | . . . . . Miscellaneous . | . . . . . Route ------- -11/Scrapyard -10/Materials (discovered 3 exits: *Mat x2 / [*Min]) -9/Materials (discovered 3 exits: *Mat / *Min x2) -8/Materials (discovered 2 exits: [*Fac] / Gar) -8/Garrison (discovered 1 exit: *Mat) History --------- Turn | Location | Event 7 | -11/Scrapyard | Discovered new exit (range 15) 689 | -11/Scrapyard | Entered Materials 690 | -10/Materials | Build established: Mutant 1163 | -10/Materials | Discovered new exit (range 5) 1261 | -10/Materials | Lost 6 parts (1p2n1u2w) 1416 | -10/Materials | Discovered new exit (range 16) 1793 | -10/Materials | Core integrity fell below 50% 1827 | -10/Materials | Discovered new exit (range 7) 2017 | -10/Materials | Entered another Materials area 2017 | -9/Materials | Evolved 2 slots: Propulsion x1, Utility x1 2089 | -9/Materials | Discovered new exit (range 16) 2429 | -9/Materials | Discovered new exit (range 4) 2504 | -9/Materials | Discovered new exit (range 11) 2743 | -9/Materials | Identified exit to Mines 2860 | -9/Materials | Entered another Materials area 2860 | -8/Materials | Evolved 2 slots: Propulsion x1, Utility x1 3279 | -8/Materials | Build established: Scavenger-Mutant 3711 | -8/Materials | Discovered new exit (range 14) 3838 | -8/Materials | Central database locked down 4577 | -8/Materials | Build established: Mutant 4772 | -8/Materials | Identified exit to Garrison 4772 | -8/Materials | Entered Garrison 4798 | -8/Garrison | Triggered checkpoint 4846 | -8/Garrison | Core integrity fell below 50% 4867 | -8/Garrison | Destroyed 8 combat bots 4926 | -8/Garrison | Triggered checkpoint 4962 | -8/Garrison | Garrison Relay disabled 5144 | -8/Garrison | Triggered checkpoint 5194 | -8/Garrison | Lost 3 allies 5285 | -8/Garrison | Garrison Relay disabled 5310 | -8/Garrison | Rescued a captive Derelict 5310 | -8/Garrison | Rescued a captive Derelict 5436 | -8/Garrison | Triggered checkpoint 5480 | -8/Garrison | Triggered checkpoint 5590 | -8/Garrison | Triggered checkpoint 5632 | -8/Garrison | Discovered new exit (range 3) 5637 | -8/Garrison | Identified exit to Materials 5653 | -8/Garrison | P-60 Hacker assimilated allied 7F-KNE(h) 5707 | -8/Garrison | Lost 3 parts (2n1u) 5789 | -8/Garrison | Garrison Relay disabled 6193 | -8/Garrison | Build established: Scavenger-Mutant 6278 | -8/Garrison | Installed Relay Interface Framework 6322 | -8/Garrison | Triggered checkpoint 6339 | -8/Garrison | Core integrity fell below 20% 6340 | -8/Garrison | Core destroyed Last Messages --------------- 06130_ Dropped Lgt. Deuterium Engine. 06131_ Dropped Lgt. Treads. 06134_ Acquired Imp. Particle Charger. 06144_ NLJ8KLS SHJKO,0BRL=/8 06162_ Extracted 74 matter. 06178_ System corrupted: Matter fused (-5). 06230_ CHCF/F7X#X6C8 I%6TEO6Y/0JSKG HVIEZFR 06260_ XW:/7F4F|CG#IJN9NM4#LO8ISTL8Z:W&DT| 06275_ CCUY7JJ AT&PYWSR#WXYJ3S>/Z:X&TYWV#FJQU Initiating installation procedure... 06278_ Relay Interface Framework installed. 06294_ System corrupted: Substantial component data lost. 06321_ System corrupted: Component data lost. 06322_ Beams of light sweep through the air. An alarm sounds. 06329_ Aluminum Leg destroyed. 06338_ System corrupted: Heat flow error (+257). 06339_ Overheating: Core damaged (-99). 06339_ Imp. Ion Engine melted. 06339_ Y-45 Defender destroyed. 06340_ Overheating: Core damaged (-104). Map ----- +----------------------------------------------------+ | ?# #???# ##??????????????????????????????????? | | ?# #???## #????????????????????+?????????????? | | ?# #???# #??????????????????????????????????? | | ?# #???# # ##??????????????????????????????????? | | ?# #???# ##???????????????????????????????????? | | ?# #???#####????????????????????????????????????? | | ?# #????????????????????????????????????????????? | | ?# #????????????????????????????????????????????? | | ?# #????????????????????????????+???????????????? | | ?# #????????????????????????????????????????????? | | ?# #????????????????????????????????????????????? | | ?# #????????????????????????????????????????????? | | ?# #??????######""""###+##??????????????????????? | | ## ######## ##?????????????????????? | | + ?????????????????????? | | + ^^^ ?????????????????????? | | ############ ## ##^ #????????+?????????????? | | ?????????### ## ## #??????????????????????? | | ?????????# ^ Y??????????????????????? | | ?????????# ^ ??????????????????????? | | ?????????# ^ ??????????????????????? | | ?????????# ??????????????????????? | | ?????????### ## ## [%#??????????????????????? | | ############ ## ## =######################## | | "## ; ; | | + = % @ ; | | ### ####### =* ######## ############## | | ??# #?????# ##* %######??????# #????????????? | | ??# #?????# ## [ !#???????????# #????????????? | | ??# #?????# ## ####???????????# #????????????? | | ??# ####### ## #??????????????# #????????????? | | ??# + #??????????????# #????????????? | | ??# ####### ####??????????????# #????????????? | | ??# #?????# #?????????????????# #????????????? | | ### +####### #?????????????????# #????????????? | | ^^ #?????????????????# #????????????? | | ^^ #?????????????????# #????????????? | | #?????????????????# #????????????? | | ################?????????????????? ?????????????? | | ?????????????????????????????????? ?????????????? | | ?????????????????????????????????? +????????????? | | ?????????????????????????????????????????????????? | | ??????????????????????????????????????????????+??? | | ?????????????????????????????????????????????????? | | ?????????????????????????????????????????????????? | | ?????????????????????????????????????????????????? | | ?????????????????????????????????????????????????? | | ?????????????????????????????????????????????????? | | ?????????????????????????????????????????????????? | | ?????????????????????????????????????????????????? | +----------------------------------------------------+ Best States ------------- Heat Dissipation 53 Energy Generation 18 Energy Capacity 310 Matter Stores 300 Matter Capacity 300 Sight Range 16 Robot Scan Range 15 Terrain Scan Density 10 Armor Coverage 300 Resistance: KI 20 Evasion (%) 55 Recoil Reduction 4 Particle Charging 20 Authchip Count 2 Item Schematics ----------------- Hcp. Storage Unit | -8/Materials | Hacked Robot Schematics ------------------ None Fabricated ------------ Nothing Repaired ---------- Nothing Studied --------- Carbon-fiber Leg | -8/Materials | Hacked Deuterium Engine | -8/Materials | Hacked Alien Tech Used ----------------- None Achievements -------------- My Bad Challenges ------------ None Game ------ Seed CryofiberMicrowarpAnalyzer Manual? 0 Play Time 00:47:52 Cumulative 43.4 hours Start 2026.02.27 @ 16:12:42 End 2026.02.27 @ 17:31:19 Sessions 3 Manual Loads 0 Difficulty Rogue Special Mode None Game No. 36 Rogue 36 Adventurer 0 Explorer 0 Win Type - Total 2 Types 2/0/0/0/0/0/0/0/0/0 Lore% 36 Gallery% 34 Achievement% 32 Wizard Run 0 Options --------- Layout 0 ASCII 1 Keyboard 1 Movement Numpad Keybinds 0 Fullscreen 1 Font 24/Cog Map View 76x50 Zoom Use 0% Tactical HUD 1 Map Filters NONE Filters NONE Steam 1 RUN: a8a709ca-554a-4233-89e7-fd79bf47806c